fUSD/lending_fUSD_20251019
["ID","MTS","AMOUNT","RATE_DAILY","PERIOD"]
[391802422,1760849930648,-151.0,0.00014991,2]
[391802423,1760849930674,-214.83958116,0.00014991,2]
[391802424,1760849930701,-300.0,0.00014998,2]
[391802425,1760849930729,-251.0,0.00014998,2]
[391802426,1760849930755,-150.0,0.00014998,2]
[391802427,1760849930782,-21.47549969,0.00014999,2]
[391802428,1760849930809,-500.0,0.00014999,2]
[391802429,1760849930835,-500.0,0.00014999,2]
[391802430,1760849930863,-500.0,0.00014999,2]
[391802431,1760849930890,-500.0,0.00014999,2]
[391802432,1760849930917,-500.0,0.00014999,2]
[391802433,1760849930943,-500.0,0.00014999,2]
[391802434,1760849930971,-500.0,0.00014999,2]
[391802435,1760849930999,-500.0,0.00014999,2]
[391802436,1760849931027,-500.0,0.00014999,2]
[391802437,1760849931054,-500.0,0.00014999,2]
[391802438,1760849931081,-500.0,0.00014999,2]
[391802439,1760849931111,-500.0,0.00014999,2]
[391802440,1760849931140,-281.81129624,0.00014999,2]
[391802441,1760849931167,-500.0,0.00014999,2]
[391802442,1760849931196,-500.0,0.00014999,2]
[391802443,1760849931226,-500.0,0.00014999,2]
[391802444,1760849931254,-500.0,0.00014999,2]
[391802445,1760849931280,-500.0,0.00014999,2]
[391802446,1760849931306,-500.0,0.00014999,2]
[391802447,1760849931332,-500.0,0.00014999,2]
[391802448,1760849931359,-500.0,0.00014999,2]
[391802449,1760849931641,-500.0,0.00014999,2]
[391802450,1760849931666,-500.0,0.00014999,2]
[391802451,1760849931693,-500.0,0.00014999,2]
[391802452,1760849931717,-500.0,0.00014999,2]
[391802453,1760849931740,-326.19,0.00014999,2]
[391802454,1760849931765,-10345.92720416,0.00015,2]
[391802455,1760849947697,-10000.0,0.00015,2]
[391802456,1760849982437,-10000.0,0.00014999,2]
[391802457,1760849983528,-10000.0,0.00014999,2]
[391802458,1760849984626,-10000.0,0.00014999,2]
[391802459,1760849985772,-175.42410535,0.00014985,2]
[391802460,1760849985800,-6910.4079571,0.00014999,2]
[391802461,1760849985826,-2914.16793755,0.00015,2]
[391802462,1760849988471,-10000.0,0.00015,2]
[391802463,1760849990137,-10000.0,0.00015,2]
[391802464,1760849991934,-10000.0,0.00015,2]
[391802465,1760849993479,-10000.0,0.00015,2]
[391802466,1760849994550,-10000.0,0.00015,2]
[391802467,1760850003113,-300.0,0.00014999,2]
[391802468,1760850003137,-1200.0,0.00014999,2]
[391802469,1760850003163,-3080.0,0.00015,2]
[391802470,1760850027098,-150.0,0.00014999,2]
[391802471,1760850027123,-5920.0,0.00015,2]
[391802472,1760850039506,-6072.0,0.00015,2]
[391802473,1760850054741,-1066.76544713,0.00015,2]
[391802474,1760850054763,-13933.23455287,0.00015,2]
[391802475,1760850055761,-15000.0,0.00015,2]
[391802476,1760850056223,-15000.0,0.00015,2]
[391802477,1760850056670,-15000.0,0.00015,2]
[391802478,1760850057055,-15000.0,0.00015,2]
[391802479,1760850057456,-15000.0,0.00015,2]
[391802480,1760850057803,-15000.0,0.00015,2]
[391802481,1760850058146,-15000.0,0.00015,2]
[391802482,1760850058591,-15000.0,0.00015,2]
[391802483,1760850059670,-15000.0,0.00015,2]
[391802484,1760850060493,-15000.0,0.00015,2]
[391802485,1760850060879,200.0,0.00033166,120]
[391802486,1760850061415,-15000.0,0.00015,2]
[391802487,1760850062114,-15000.0,0.00015,2]
[391802488,1760850062499,-15000.0,0.00015,2]
[391802489,1760850063701,-1990.51280732,0.00015,2]
[391802490,1760850063722,-13009.48719268,0.00015,2]
[391802491,1760850064844,-15000.0,0.00015,2]
[391802492,1760850065847,-8238.97754462,0.00015,2]
[391802493,1760850065867,-1400.0,0.00015,7]
[391802494,1760850065891,-150.0,0.00015,2]
[391802495,1760850065912,-150.0,0.00015,2]
[391802496,1760850065932,-152.53886014,0.00015,2]
[391802497,1760850065952,-150.0,0.00015,2]
[391802498,1760850065972,-150.0,0.00015,2]
[391802499,1760850065993,-152.37078866,0.00015,2]
[391802500,1760850069481,-159.37659119,0.00015003,2]
[391802501,1760850071632,-40.62340881,0.00015003,2]
[391802502,1760850071658,-150.0,0.00015055,2]
[391802503,1760850071683,-5.29005956,0.00015055,2]
[391802504,1760850073177,-144.70994044,0.00015055,2]
[391802505,1760850073202,-47.19915516,0.0001511,2]
[391802506,1760850075014,374.78414177,0.000149,2]
[391802507,1760850076517,-152.80084484,0.0001511,2]
[391802508,1760850076541,-200.0,0.0001511,2]
[391802509,1760850076569,-113.32313237,0.00015185,3]
[391802510,1760850079194,-170.92434197,0.00015185,3]
[391802511,1760850081752,-284.57537335,0.00015185,3]
[391802512,1760850088149,4081.32866481,0.00015,2]
[391802513,1760850088172,15000.0,0.00015,2]
[391802514,1760850129089,-5000.0,0.00015,2]
[391802515,1760850130205,-5000.0,0.00015,2]
[391802516,1760850131201,-5000.0,0.00015,2]
[391802517,1760850132214,-5000.0,0.00015,2]
[391802518,1760850133271,-5000.0,0.00015,2]
[391802519,1760850139009,-5052.0,0.00015,2]
[391802520,1760850155130,-881.0,0.00015,2]
[391802521,1760850170393,-5518.33509889,0.00015,2]
[391802522,1760850175035,-168.09422129,0.00015015,2]
[391802523,1760850298071,-500.0,0.00014899,2]
[391802524,1760850298098,-73.0,0.00014957,2]
[391802525,1760850321717,-219.65,0.00014834,2]
[391802526,1760850321744,-122.0,0.00014957,2]
[391802527,1760850321768,-40.35,0.00015015,2]
[391802528,1760850361036,200.0,0.00033164,120]
[391802531,1760850445154,-204.90186864,0.00013699,2]
[391802532,1760850549469,-25.20813136,0.00013699,2]
[391802533,1760850549493,-166.66,0.00013976,2]
[391802534,1760850549519,-138.74395192,0.00014214,2]
[391802535,1760850551765,-209.55709565,0.00014214,2]
[391802536,1760850556881,-151.69895243,0.00014214,2]
[391802537,1760850556907,-1.48210995,0.00014271,2]
[391802538,1760850570975,1095.93,7.198e-05,2]
[391802539,1760850571165,1095.93,7.577e-05,2]
[391802540,1760850571358,1095.93,7.955e-05,2]
[391802541,1760850571563,1095.93,8.334e-05,2]
[391802542,1760850571750,1095.93,8.713e-05,2]
[391802543,1760850571944,1095.93,9.092e-05,2]
[391802544,1760850572145,1095.93,9.471e-05,2]
[391802545,1760850572340,1095.93,9.85e-05,2]
[391802546,1760850572525,1095.93,0.00010228,2]
[391802547,1760850572915,1095.93,0.00010607,2]
[391802548,1760850573113,1095.93,0.00010986,2]
[391802549,1760850573324,1095.93,0.00011365,2]
[391802550,1760850573545,1095.93,0.00011744,2]
[391802551,1760850573736,1095.93,0.00012123,2]
[391802552,1760850573934,1095.93,0.00012501,2]
[391802553,1760850574168,1095.93,0.0001288,2]
[391802554,1760850574358,1095.93,0.00013259,2]
[391802555,1760850579455,-271.45592383,0.00013638,2]
[391802556,1760850582088,-323.87269986,0.00013638,2]
[391802557,1760850585560,-176.12730014,0.00013638,2]
[391802558,1760850587002,-195.91666942,0.00013638,2]
[391802559,1760850588560,-128.55740675,0.00013638,2]
[391802560,1760850588583,-39.93731186,0.00014017,2]
[391802561,1760850591184,-185.51545272,0.00014017,2]
[391802562,1760850595791,-229.54679533,0.00014017,2]
[391802563,1760850596853,-640.93044009,0.00014017,2]
[391802564,1760850596876,-165.17789005,0.00014271,2]
[391802565,1760850596899,-1095.93,0.00014395,2]
[391802566,1760850596923,-97.96166986,0.00014565,2]
[391802576,1760850631369,-68.69833014,0.00014565,2]
[391802578,1760850631379,-153.18106238,0.00014604,2]
[391802580,1760850631388,-300.0,0.00014604,2]
[391802581,1760850631397,-379.20944747,0.00014642,2]
[391802582,1760850631407,-520.68616001,0.00014729,2]
[391802583,1760850631423,-1290.06170781,0.00014729,2]
[391802584,1760850631480,-942.71067945,0.00014729,2]
[391802585,1760850631542,-294.84302077,0.00014729,2]
[391802586,1760850631557,-1734.97613003,0.00014729,2]
[391802587,1760850631568,-1902.73691266,0.00014729,2]
[391802588,1760850631580,-256.26538927,0.00014729,2]
[391802589,1760850631589,-877.6681334,0.00014843,2]
[391802590,1760850631606,-322.3318666,0.00014843,2]
[391802591,1760850631615,-1500.0,0.00014844,2]
[391802592,1760850631625,-166.66,0.00014859,2]
[391802593,1760850631635,-862.81864,0.0001496,2]
[391802594,1760850631644,-300.0,0.00014979,2]
[391802595,1760850631654,-862.81864,0.0001498,2]
[391802596,1760850631664,-3641.8203822,0.00014996,2]
[391802597,1760850631673,-862.81864,0.00015,2]
[391802598,1760850631683,-195.0,0.00015068,2]
[391802599,1760850631692,-250.0,0.00015068,2]
[391802600,1760850631702,-500.0,0.00015068,2]
[391802601,1760850631711,-416.5056316,0.00015068,2]
[391802602,1760850631721,-475.06633,0.0001507,2]
[391802603,1760850631730,-1200.0,0.00015109,2]
[391802604,1760850631740,-862.81863,0.0001511,2]
[391802605,1760850631749,-862.81864,0.0001511,2]
[391802606,1760850631759,-862.81864,0.0001511,2]
[391802607,1760850631769,-166.66,0.00015153,2]
[391802608,1760850631778,-97.17715231,0.00015185,3]
[391802609,1760850631787,-475.06633,0.0001532,2]
[391802610,1760850631796,-166.66,0.00015447,2]
[391802611,1760850631805,-2907.41498667,0.0001547,2]
[391802612,1760850631815,-5719.98553513,0.0001547,2]
[391802613,1760850631824,-173.3052124,0.00015473,2]
[391802614,1760850631834,-151.02,0.00015488,2]
[391802615,1760850631844,-2205.1217,0.00015507,2]
[391802616,1760850631853,-164.17,0.00015516,2]
[391802617,1760850631863,-151.0,0.00015536,2]
[391802618,1760850631873,-151.0,0.00015536,2]
[391802619,1760850631883,-151.0,0.00015536,2]
[391802620,1760850631892,-151.0,0.00015536,2]
[391802621,1760850631901,-151.0,0.00015536,2]
[391802622,1760850631911,-151.0,0.00015536,2]
[391802623,1760850631920,-151.0,0.00015536,2]
[391802624,1760850631930,-151.0,0.00015536,2]
[391802625,1760850631939,-151.0,0.00015536,2]
[391802626,1760850631948,-151.0,0.00015536,2]
[391802627,1760850631958,-151.0,0.00015536,2]
[391802628,1760850631967,-151.0,0.00015536,2]
[391802629,1760850631976,-151.0,0.00015536,2]
[391802630,1760850631986,-151.0,0.00015536,2]
[391802631,1760850631995,-189.34,0.00015536,2]
[391802632,1760850632005,-300.0,0.00015543,2]
[391802633,1760850632014,-558.0594245,0.00015544,2]
[391802634,1760850632023,-500.0,0.00015544,2]
[391802635,1760850632032,-483.66070468,0.00015544,2]
[391802636,1760850632042,-189.0293247,0.00015544,2]
[391802637,1760850632051,-500.0,0.00015544,2]
[391802638,1760850632060,-500.0,0.00015544,2]
[391802639,1760850632070,-415.09065264,0.00015544,2]
[391802640,1760850632080,-500.0,0.00015544,2]
[391802641,1760850632090,-500.0,0.00015544,2]
[391802642,1760850632099,-428.18112963,0.00015544,2]
[391802643,1760850632110,-8527.08154664,0.00015545,2]
[391802644,1760850632122,-3580.63739766,0.00015545,2]
[391802645,1760850632141,-7546.00000012,0.00015545,2]
[391802670,1760850637474,-43298.78310663,0.00015545,2]
[391802681,1760850639440,-4333.44879697,0.00015545,2]
[391802682,1760850640867,-155.94464685,0.00015545,2]
[391802683,1760850640909,-658.69756863,0.00015545,2]
[391802684,1760850641304,-1.6e-07,0.00015545,2]
[391802685,1760850641321,-4599.0638606,0.00015545,2]
[391802693,1760850642416,-453.0,0.00015545,2]
[391802718,1760850645454,-8847.25965807,0.00015545,2]
[391802719,1760850645466,-37625.46988838,0.00015545,2]
[391802720,1760850645477,-4793.20010922,0.00015545,2]
[391802721,1760850645563,-302.0,0.00015545,2]
[391802722,1760850645780,-6633.69571503,0.00015545,2]
[391802723,1760850660724,200.0,0.00033165,120]
[391802724,1760850726220,6888.0,0.00033165,30]
[391802725,1760850726818,7142.856,0.00033165,30]
[391802726,1760850727493,7407.141672,0.00033165,30]
[391802727,1760850728140,7681.20591386,0.00033165,30]
[391802728,1760850728734,7965.41053268,0.00033165,30]
[391802729,1760850875384,681.36420853,0.00033165,30]
[391802730,1760850961951,200.0,0.00033165,120]
[391802731,1760851194518,-195.02259104,0.0001491,2]
[391802733,1760851261041,200.0,0.00033163,120]
[391802734,1760851264016,-5058.97116209,0.0001491,2]
[391802735,1760851264041,-300.0,0.00014999,2]
[391802736,1760851264066,-1200.0,0.00014999,2]
[391802737,1760851264090,-155.0,0.00015,2]
[391802738,1760851264115,-500.0,0.00015,2]
[391802739,1760851264144,-338.56249327,0.00015,2]
[391802740,1760851264169,-500.0,0.00015,2]
[391802741,1760851264195,-340.56345685,0.00015,2]
[391802742,1760851264219,-390.64159715,0.00015,2]
[391802743,1760851264244,-500.0,0.00015,2]
[391802744,1760851264269,-389.7702507,0.00015,2]
[391802745,1760851264295,-326.49103994,0.00015,2]
[391802746,1760851266257,-173.50896006,0.00015,2]
[391802747,1760851266283,-2601.31422881,0.00015001,2]
[391802748,1760851266307,-7225.17681113,0.00015001,2]
[391802749,1760851267993,-10000.0,0.00015001,2]
[391802750,1760851279184,-1721.0,0.00015001,2]
[391802751,1760851383504,1091.0,0.00033163,30]
[391802752,1760851386562,488.40694444,0.00033163,30]
[391802753,1760851389081,1091.0,0.00033163,30]
[391802754,1760851505458,-1004.0,0.00015,2]
[391802755,1760851505485,-8996.0,0.00015001,2]
[391802756,1760851510682,-10000.0,0.00015,2]
[391802757,1760851512539,-10000.0,0.00015,2]
[391802758,1760851520102,-8436.0,0.00015,2]
[391802759,1760851552437,-265.53318313,0.00014901,2]
[391802760,1760851552460,-224.6812165,0.00014901,2]
[391802761,1760851552483,-993.03298989,0.00014901,2]
[391802762,1760851552508,-3516.75261048,0.00015,2]
[391802763,1760851559222,-5584.0,0.00015,2]
[391802764,1760851561353,200.0,0.00033163,120]
[391802765,1760851561889,5358.10166077,8e-05,2]
[391802769,1760851579728,-150.0,0.00016438,30]
[391802770,1760851592305,-15.97,0.00016438,30]
[391802771,1760851629471,-367.25394461,0.000149,2]
[391802774,1760851666447,2186.88199857,0.00013,2]
[391802778,1760851718175,440.72193341,0.0001,2]
[391802786,1760851831550,-186.59130588,0.000135,2]
[391802788,1760851831559,-206.65614732,0.0001485,2]
[391802790,1760851831570,-93.34385268,0.0001485,2]
[391802792,1760851831579,-229.98540182,0.0001485,2]
[391802794,1760851831590,-20.01459818,0.0001485,2]
[391802795,1760851831600,-475.05088839,0.0001485,2]
[391802796,1760851831611,-685.08971641,0.0001485,2]
[391802797,1760851831622,-1339.8593952,0.0001485,2]
[391802798,1760851831632,-500.0,0.0001485,2]
[391802799,1760851831641,-300.0,0.0001485,2]
[391802800,1760851831651,-154.41891674,0.00014899,2]
[391802801,1760851831660,-300.0,0.00014899,2]
[391802802,1760851831672,-541.37854955,0.00014899,2]
[391802803,1760851831691,-658.62145045,0.00014899,2]
[391802804,1760851831701,-300.0,0.00014899,2]
[391802805,1760851831711,-150.0,0.00014899,2]
[391802806,1760851831720,-882.67699239,0.000149,2]
[391802807,1760851831744,-1550.43233475,0.000149,2]
[391802808,1760851831755,-295.99999997,0.000149,2]
[391802809,1760851831766,-586.4,0.000149,2]
[391802810,1760851831785,-465.9953285,0.000149,2]
[391802811,1760851831802,-46696.07352509,0.000149,2]
[391802812,1760851831812,-20789.57839318,0.000149,2]
[391802813,1760851831826,-5377.15648685,0.000149,2]
[391802814,1760851831837,-224.6812165,0.000149,2]
[391802816,1760851831847,-270.20883364,0.000149,2]
[391802817,1760851831856,-1024.56395664,0.000149,2]
[391802818,1760851831866,-519.91563714,0.000149,2]
[391802819,1760851831875,-662.02199326,0.000149,2]
[391802820,1760851831884,-256.18160513,0.0001492,2]
[391802821,1760851831893,-803.08665162,0.0001494,2]
[391802822,1760851831904,-702.54334838,0.0001494,2]
[391802823,1760851831915,-500.0,0.00014973,2]
[391802824,1760851831925,-500.0,0.00014973,2]
[391802825,1760851831935,-500.0,0.00014973,2]
[391802826,1760851831944,-500.0,0.00014973,2]
[391802828,1760851831955,-500.0,0.00014973,2]
[391802829,1760851831966,-500.0,0.00014973,2]
[391802830,1760851831976,-185.29838688,0.0001499,2]
[391802831,1760851831987,-185.29838688,0.0001499,2]
[391802832,1760851831997,-185.29838688,0.0001499,2]
[391802833,1760851832006,-151.0,0.00014992,2]
[391802834,1760851832016,-151.0,0.00014992,2]
[391802835,1760851832025,-151.0,0.00014992,2]
[391802836,1760851832034,-151.0,0.00014992,2]
[391802837,1760851832043,-239.83189209,0.00014992,2]
[391802838,1760851832052,-209.22393635,0.00014999,5]
[391802839,1760851832062,-164.08136025,0.00014999,2]
[391802840,1760851832072,-189.69184311,0.00014999,2]
[391802841,1760851832081,-332.45242784,0.00014999,2]
[391802842,1760851832090,-500.0,0.00014999,2]
[391802843,1760851832099,-383.20562003,0.00014999,2]
[391802844,1760851832108,-500.0,0.00014999,2]
[391802845,1760851832118,-458.56116146,0.00014999,2]
[391802846,1760851832128,-952.79247547,0.00015,2]
[391802879,1760851839553,-3194.250153,0.00015,2]
[391802880,1760851839666,-446.08647671,0.00015,2]
[391802881,1760851839676,-556.27875531,0.00015,2]
[391802882,1760851839974,-8529.79290964,0.00015,2]
[391802883,1760851839988,-8947.21879473,0.00015,2]
[391802884,1760851839999,-8943.78386462,0.00015,2]
[391802885,1760851840010,-9077.54866152,0.00015,2]
[391802886,1760851840021,-8943.84023489,0.00015,2]
[391802888,1760851842639,-573.43508448,0.00015,2]
[391802889,1760851842751,-928.5963,0.00015,2]
[391802890,1760851845835,-506.7,0.00015,2]
[391802896,1760851861683,200.0,0.00033163,120]
[391802897,1760851869421,-203.28628982,0.00014899,2]
[391802898,1760851886128,-296.71371018,0.00014899,2]
[391802899,1760851886150,-167.19628982,0.00014899,2]
[391802900,1760851887675,-80.65946305,0.00014899,2]
[391802901,1760851887700,-323.20519007,0.00014899,2]
[391802902,1760851887723,-136.20130513,0.00014899,2]
[391802903,1760851899458,-311.10736583,0.000147,2]
[391802904,1760851900915,-520.94830104,0.000147,2]
[391802905,1760851924691,587.07369635,0.00033163,120]
[391802910,1760851974488,-250.0,0.00014337,2]
[391802911,1760851974515,-44.83987302,0.00014373,2]
[391802912,1760851977126,-520.94830104,0.00014373,2]
[391802913,1760851979843,-420.47616769,0.00014373,2]
[391802914,1760851983105,-410.09671403,0.00014373,2]
[391802915,1760851985831,-154.25091183,0.00014373,2]
[391802916,1760851989083,-620.2116624,0.00014373,2]
[391802917,1760851990547,-188.40903968,0.00014373,2]
[391802918,1760851992479,-391.76733031,0.00014373,2]
[391802919,1760851992507,-35.14063492,0.00014537,2]
[391802920,1760851995680,-162.55516565,0.00014537,2]
[391802921,1760851997747,-329.82511154,0.00014537,2]
[391802922,1760852000308,-399.40224874,0.00014537,2]
[391802923,1760852002367,-259.69949609,0.00014537,2]
[391802924,1760852019525,-311.05,0.00014537,2]
[391802925,1760852021583,-171.30698748,0.00014537,2]
[391802926,1760852022990,-330.55311825,0.00014537,2]
[391802927,1760852023019,-227.0,0.00014537,2]
[391802928,1760852027865,-273.46723733,0.00014537,2]
[391802929,1760852027887,-103.36051186,0.000146,2]
[391802930,1760852033805,-123.84632797,0.000146,2]
[391802931,1760852034564,-105.42433313,0.000147,2]
[391802932,1760852034588,-143.55767626,0.00014728,2]
[391802933,1760852037978,-277.58015882,0.00014728,2]
[391802934,1760852043584,-435.76306031,0.00014728,2]
[391802935,1760852046907,-250.0,0.00014728,2]
[391802936,1760852058732,-300.0,0.00014728,2]
[391802937,1760852059299,-188.02723109,0.00014728,2]
[391802938,1760852060730,-313.90288985,0.00014728,2]
[391802939,1760852079480,-239.80037332,0.00014728,2]
[391802940,1760852080917,-307.65148762,0.00014728,2]
[391802941,1760852088824,-43.71712273,0.00014728,2]
[391802942,1760852088849,-287.78862138,0.000148,2]
[391802947,1760852123343,591.0,0.00014253,2]
[391802948,1760852123365,250.0,0.00014253,2]
[391802949,1760852128924,789.54394044,0.00033163,120]
[391802953,1760852161873,200.0,0.00033163,120]
[391802955,1760852199031,-159.0,0.00014253,2]
[391802958,1760852215521,-157.1395051,0.00014526,2]
[391802959,1760852216293,-92.8604949,0.00014526,2]
[391802960,1760852218333,-244.03490834,0.00014628,2]
[391802966,1760852252363,-22.21039166,0.00014628,2]
[391802967,1760852252388,-816.0,0.00014899,2]
[391802968,1760852252410,-182.05255842,0.000149,2]
[391802969,1760852252431,-531.06636624,0.000149,2]
[391802970,1760852252455,-498.67068368,0.000149,2]
[391802972,1760852320019,-700.0,0.00014639,2]
[391802974,1760852409570,-252.91331211,0.00014093,2]
[391802975,1760852413414,-234.61837252,0.00014093,2]
[391802976,1760852415953,-182.40920469,0.00014093,2]
[391802977,1760852417891,-281.68956733,0.00014093,2]
[391802978,1760852421893,-192.79377433,0.00014093,2]
[391802979,1760852423524,-198.86127945,0.00014093,2]
[391802980,1760852439450,-195.0,0.00014093,2]
[391802981,1760852444462,-462.30326649,0.00014093,2]
[391802982,1760852446691,-508.57332408,0.00014093,2]
[391802983,1760852448750,-447.38477188,0.00014093,2]
[391802984,1760852462049,200.0,0.00033162,120]
[391802987,1760852674364,189.78,0.00011214,2]
[391802988,1760852699797,1710905.87110947,0.00033162,30]
[391802989,1760852724530,-1217.03,0.00013987,2]
[391802990,1760852724556,-666.0,0.00014018,3]
[391802991,1760852724578,-300.0,0.00014027,2]
[391802992,1760852724599,-303.92081726,0.00014037,2]
[391802993,1760852724620,-300.0,0.00014055,2]
[391802994,1760852724643,-2049.06260042,0.00014055,2]
[391802995,1760852726418,-164.72,0.00014055,2]
[391802996,1760852729165,-154.7846,0.00014055,2]
[391802997,1760852732256,-131.43279958,0.00014055,2]
[391802998,1760852732288,-19.00312712,0.00014093,2]
[391802999,1760852732322,-9.88501528,0.00014114,2]
[391803000,1760852735542,-162.4,0.00014114,2]
[391803001,1760852737574,-127.71498472,0.00014114,2]
[391803002,1760852737596,-93.24883556,0.00014114,2]
[391803004,1760852847257,-218.96254306,0.00014114,2]
[391803005,1760852847280,-195.0,0.00014366,2]
[391803006,1760852847310,-7641.0326767,0.00014516,2]
[391803007,1760852847334,-879.50225953,0.00014529,2]
[391803008,1760852847357,-293.9155254,0.00014639,2]
[391803009,1760852847379,-173.0,0.00014659,2]
[391803010,1760852847401,-565.77146884,0.00014689,2]
[391803011,1760852847424,-32.81552647,0.0001475,2]
[391803012,1760852901026,155.0,0.00028767,120]
[391803014,1760852976866,-250.0,0.00015136,7]
[391803015,1760853020729,-1068.90736382,0.00014316,2]
[391803016,1760853020761,-4181.09263618,0.00014333,2]
[391803024,1760853031759,-300.0,0.00014405,2]
[391803025,1760853031769,-300.0,0.00014405,2]
[391803026,1760853031778,-1200.0,0.00014405,2]
[391803027,1760853031788,-2544.16748859,0.00014406,2]
[391803028,1760853031799,-36299.44934431,0.00014406,2]
[391803029,1760853031808,-1765.0,0.00014824,2]
[391803030,1760853031818,-500.0,0.00014839,2]
[391803031,1760853031828,-1047.0,0.00014853,2]
[391803032,1760853031838,-500.0,0.00014858,2]
[391803033,1760853031847,-500.0,0.00014858,2]
[391803034,1760853031856,-1200.0,0.00014864,2]
[391803035,1760853031871,-1600.0,0.00014865,2]
[391803036,1760853031881,-1040.0,0.00014883,2]
[391803037,1760853031891,-1263.0,0.00014894,2]
[391803038,1760853031902,-155.0,0.00014899,2]
[391803039,1760853031912,-160.75626769,0.000149,2]
[391803040,1760853031923,-216.27284311,0.000149,2]
[391803041,1760853031932,-180.13922242,0.000149,2]
[391803042,1760853031941,-3112.35080668,0.000149,2]
[391803043,1760853031951,-441.3479955,0.000149,2]
[391803044,1760853031960,-614.0,0.00014912,2]
[391803045,1760853031971,-1698.0,0.00014924,2]
[391803046,1760853031980,-3409.666473,0.00014926,2]
[391803047,1760853031990,-8470.868359,0.00014934,2]
[391803048,1760853031999,-677.0,0.00014942,2]
[391803049,1760853032009,-1552.09440877,0.00014954,2]
[391803050,1760853032018,-1230.0,0.00014972,2]
[391803051,1760853032028,-150.0,0.00014972,2]
[391803052,1760853032038,-619.36424473,0.00014973,2]
[391803054,1760853032047,-500.83838662,0.00014973,2]
[391803055,1760853032057,-500.0,0.00014973,2]
[391803056,1760853032070,-500.0,0.00014973,2]
[391803057,1760853032080,-500.0,0.00014973,2]
[391803058,1760853032090,-749.984,0.00014973,2]
[391803059,1760853032099,-151.0,0.00014978,2]
[391803060,1760853032108,-151.0,0.00014978,2]
[391803061,1760853032118,-151.0,0.00014978,2]
[391803062,1760853032127,-151.0,0.00014978,2]
[391803063,1760853032136,-151.0,0.00014978,2]
[391803064,1760853032146,-151.0,0.00014978,2]
[391803065,1760853032155,-151.0,0.00014978,2]
[391803066,1760853032164,-151.0,0.00014978,2]
[391803067,1760853032174,-151.0,0.00014978,2]
[391803068,1760853032183,-151.0,0.00014978,2]
[391803070,1760853032193,-151.0,0.00014978,2]
[391803071,1760853032202,-209.62413648,0.00014978,2]
[391803073,1760853032211,-151.0,0.00014978,2]
[391803074,1760853032221,-151.0,0.00014978,2]
[391803075,1760853032231,-151.0,0.00014978,2]
[391803076,1760853032240,-151.0,0.00014978,2]
[391803078,1760853032250,-516.75,0.00014986,2]
[391803080,1760853032259,-26864.73818329,0.00014987,2]
[391803081,1760853032271,-8438.09452681,0.00014987,2]
[391803082,1760853032280,-176.51023443,0.0001499,2]
[391803083,1760853032289,-151.0,0.00014997,2]
[391803084,1760853032299,-697.30849142,0.00014999,2]
[391803085,1760853032307,-28609.89073165,0.00015,2]
[391803086,1760853032331,-500.0,0.00014893,2]
[391803087,1760853032340,-506.71433122,0.00015,2]
[391803088,1760853032351,-716.26569835,0.00015,2]
[391803089,1760853032361,-5514.963059,0.00015,2]
[391803090,1760853032387,-306.88097256,0.00014893,2]
[391803091,1760853032401,-193.11902744,0.00014893,2]
[391803092,1760853032412,-4569.89465832,0.00015,2]
[391803093,1760853037778,-607.33978103,0.00014333,2]
[391803094,1760853037939,-1716.63602497,0.00014333,2]
[391803095,1760853037948,-500.0,0.00014893,2]
[391803096,1760853037958,-402.05767706,0.00014893,2]